Cogmind - Beta 16.1 @@@ ROGUE MODE // 2026.03.26 @ 23:14:26 Player: KURIIRI Result: Destroyed by Autobeam Turret with Autobeam Performance ------------- Evolutions (0) 0 Regions Visited (2) 400 Robots Destroyed (39) 195 Value Destroyed (1151) 1151 Prototype IDs (4) 80 Alien Tech Used (0) 0 Bonus (-104) -104 TOTAL SCORE: 1722 Bonus ------- Friendly Fire -104 Cogmind --------- Core Integrity 0/250 Matter 300/300 Energy 100/100 System Corruption 0% Temperature Cool (6) Movement Core (500) Ox9 Location -10/Subcaves Parts ------- > --- POWER (1) -------- (None) > --- PROPULSION (2) --- (None) > --- UTILITY (2) ------ Large Storage Unit Subdweller Optics > --- WEAPON (2) ------- Subdweller Beam Cannon > --- INVENTORY (15) --- Subdweller Monowheel Subdweller Monowheel High-capacity Storage Unit High-capacity Matter Pod (200) Subdweller Optics Subdweller Optics Scrap Shield Hacking Suite Particle Cannon Subdweller Beam Cannon Subdweller Machine Gun Grenade Launcher Ripper Peak State ------------ > --- POWER ------------ Ion Engine > --- PROPULSION ------- Compact Wheel Subdweller Monowheel > --- UTILITY ---------- Improved Heat Sink Large Storage Unit > --- WEAPON ----------- Particle Cannon Subdweller Beam Cannon > --- INVENTORY -------- Subdweller Power Source Subdweller Monowheel High-capacity Storage Unit High-capacity Matter Pod Subdweller Optics Subdweller Optics Scrap Shield Hacking Suite Particle Cannon Particle Cannon Subdweller Beam Cannon Subdweller Machine Gun Grenade Launcher Ripper [Rating: 15] Favorites ----------- Power Ion Engine Engine Ion Engine Propulsion Light Treads Treads Light Treads Leg Aluminum Leg Wheel Subdweller Monowheel Utility Large Storage Unit Device Improved Heat Sink Storage Large Storage Unit Weapon Particle Cannon Energy Gun Small Laser Energy Cannon Particle Cannon Ballistic Gun Assault Rifle Launcher Grenade Launcher Build | -11 -10 -10 ------- Run | Yrd Mat Sub Slots Evolved . | . . . Power . | . . . Propulsion . | . . . Utility . | . . . Weapon . | . . . Parts Attached 29 | 3 8 18 Power 4 | . 1 3 Engine 4 | . 1 3 Core . | . . . Reactor . | . . . Propulsion 8 | 2 . 6 Treads 3 | 2 . 1 Leg . | . . . Wheel 5 | . . 5 Hover . | . . . Flight . | . . . Utility 5 | 1 2 2 Device 4 | 1 1 2 Storage 1 | . 1 . Processor . | . . . Hackware . | . . . Protection . | . . . Artifact . | . . . Weapon 12 | . 5 7 Energy Gun 1 | . 1 . Energy Cannon 8 | . 3 5 Ballistic Gun . | . . . Ballistic Cannon . | . . . Launcher 3 | . 1 2 Special Weapon . | . . . Impact Weapon . | . . . Slashing Weapon . | . . . Piercing Weapon . | . . . Special Melee Weapon . | . . . Unidentified Prototypes . | . . . Parts Lost 13 | . . 13 Power 3 | . . 3 Propulsion 5 | . . 5 Utility 1 | . . 1 Weapon 4 | . . 4 Highest Loss Streak 3 | . . 3 To Critical Strikes . | . . . Average Backups 12 | 5 9 13 Power 1 | 1 1 1 Propulsion 1 | 3 1 1 Utility 4 | . 1 5 Weapon 4 | 1 4 5 Tool/Special . | . . . Unused Backups 16 | . 5 11 Power 2 | . . 2 Propulsion 2 | . 1 1 Utility 7 | . 1 6 Weapon 5 | . 3 2 Tool/Special . | . . . Average Slot Usage (%) 97 | . 100 97 Engine 13 | . 14 13 Treads 17 | . 28 13 Wheel 8 | . . 12 Device 13 | . 14 13 Storage 14 | . 14 14 Energy Cannon 27 | . 27 27 Peak Build Rating 15 | 7 12 15 Average Rating 12 | 6 11 13 On Entrance 8 | 6 7 12 Avg Prop Armor Cover (%) 6 | . . 6 Naked Turns . | . . . Heaviest Build 43 | 12 34 43 Greatest Support 40 | 40 40 40 Greatest Overweight (x) 11 | . . 11 Average Overweight (x) . | . . . Largest Inventory Capacity 15 | 8 15 15 Average Capacity 13 | 8 10 15 Most Carried 15 | 6 13 15 Average Carried 12 | 5 9 14 Final Capacity 15 | 8 15 15 Final Carried 14 | 4 13 14 Class Distribution -------------------- 89% | Mutant 10% | Scavenger-Mutant Dominant Class ---------------- Mutant | -10/Materials Mutant | -10/Subcaves Resources | -11 -10 -10 ----------- Run | Yrd Mat Sub Matter Collected 908 | 226 181 501 Remotely . | . . . Salvage Created 1475 | 83 563 829 Parts 93 | 6 25 62 Haulers Intercepted 2 | . 2 . Recyclers Shooed . | . . . Parts Field Recycled . | . . . Retrieved Matter . | . . . Parts Self-Destructed 13 | . . 13 Prevented . | . . . Parts Restored . | . . . Kills | -11 -10 -10 ------- Run | Yrd Mat Sub Combat Hostiles Destroyed 31 | . 8 23 Cannons 22 | . 8 14 AOE 9 | . . 9 Classes Destroyed 11 | 2 5 4 Builder 1 | . 1 . Tunneler 1 | 1 . . Hauler 2 | . 2 . Recycler 2 | 1 1 . Operator 1 | . 1 . Watcher 1 | . 1 . Swarmer 4 | . . 4 Grunt 10 | . 8 2 Sentry 1 | . . 1 Artisan 2 | . . 2 Subdweller 16 | . . 16 Best Kill Streak 4 | 2 3 4 Combat Bots Only 4 | . 3 4 Max Kills in Single Turn 3 | 1 1 3 Gunslinging . | . . . Exploded 3 | . . 3 Melee . | . . . Uniques/NPCs Destroyed . | . . . Combat | -11 -10 -10 -------- Run | Yrd Mat Sub Hostile Shots Fired 191 | . 30 161 Missed 63 | . 4 59 Hits 128 | . 26 102 Projectile 128 | . 26 102 Critical Strikes 3 | . 1 2 Damage Taken 1759 | . 331 1428 Core 251 | . 57 194 Absorbed by Shields . | . . . Core Remaining (%) 100 | 100 . . Volleys Fired 162 | 4 37 121 Largest 2 | 2 2 2 Hottest 160 | 40 136 160 Shots Fired 224 | 8 70 146 Gun 8 | 8 . . Cannon 201 | . 66 135 Launcher 15 | . 4 11 Special . | . . . Kinetic 8 | 8 . . Thermal 201 | . 66 135 Explosive 15 | . 4 11 Electromagnetic . | . . . Robot Hit Streak 14 | 4 6 14 Robot Miss Streak 4 | 1 4 3 Penetration Max . | . . . Secondary Targets . | . . . Shots Hit Robots 109 | 6 40 63 Core Hits 45 | 3 14 28 Critical Kills . | . . . Critical Parts Destroyed . | . . . Critical Strikes . | . . . Melee Attacks . | . . . Impact . | . . . Slashing . | . . . Piercing . | . . . Sneak Attacks . | . . . Combat Hostiles . | . . . Follow-up Attacks . | . . . Damage Inflicted 2914 | 60 859 1995 Guns 60 | 60 . . Cannons 2251 | . 840 1411 Explosions 584 | . . 584 Melee . | . . . Ramming 19 | . 19 . Kinetic 60 | 60 . . Thermal 2251 | . 840 1411 Explosive 584 | . . 584 Electromagnetic . | . . . Impact . | . . . Slashing . | . . . Piercing . | . . . Highest Corruption . | . . . Average Corruption . | . . . Corruption Purged . | . . . Corruption Blocked . | . . . Overload Shots . | . . . Overflow Damage 17 | . 2 15 Projectiles 17 | . 2 15 Explosions . | . . . Melee . | . . . Knockbacks . | . . . Impact . | . . . Kinetic . | . . . Secondary . | . . . Self-Inflicted Damage 58 | . 29 29 Shots 2 | . 1 1 Rammed 7 | . 7 . Targets Rammed 8 | . 8 . Kicked . | . . . Crushed 1 | . 1 . Highest Temperature 369 | . 369 81 Average Temperature 79 | . 102 14 Received Heat Transfer 579 | . 180 399 Siege Activations . | . . . Martial Activations . | . . . Shielding Activations . | . . . Robots Disrupted . | . . . Combat Hostiles . | . . . Robots Corrupted . | . . . Combat Hostiles . | . . . Parts Fried . | . . . Impact Corruptions . | . . . Robots Melted . | . . . Combat Hostiles . | . . . Parts Melted 2 | . 1 1 Heat Transferred 3478 | . 1517 1961 Parts Sabotaged . | . . . Parts Stolen . | . . . Parts Stripped . | . . . Power Chain Reactions . | . . . Alert | -11 -10 -10 ------- Run | Yrd Mat Sub Maximum Alert Level . | . . . Low Security (%) 100 | 100 100 . Level 1 . | . . . Level 2 . | . . . Level 3 . | . . . Level 4 . | . . . Level 5 . | . . . High Security . | . . . Max Security . | . . . Peak Influence 87 | 10 87 . Initial . | . . . Average 26 | 4 27 . Influence Increases 634 | 10 369 255 Destroy 0b10 Robot/C 300 | . 160 140 Destroy 0b10 Robot/NC 40 | 10 30 . Destroy Leader 56 | . 46 10 Successful Hack 54 | . 54 . Select Force Hacks 60 | . 60 . Destroy Structure 19 | . 19 . Lose Combat Pursuer 105 | . . 105 Influence Decreases 634 | 10 369 255 Time Decay 601 | 10 369 222 Lost Part 33 | . . 33 Squads Dispatched 6 | . 6 . Investigation 5 | . 5 . Extermination . | . . . Reinforcement 1 | . 1 . Assault . | . . . Garrison . | . . . Intercept . | . . . Searches Triggered . | . . . Construction Impeded . | . . . Haulers Reinforced . | . . . Active Scanning Responses . | . . . Cargo Convoy Interrupts . | . . . Stealth | -11 -10 -10 --------- Run | Yrd Mat Sub Distress Signals . | . . . Communications Jammed . | . . . Distress Signals . | . . . Times Spotted 43 | . 14 29 Peak Tracking Total 4 | . 3 4 Tactical Retreats 3 | . . 3 Traps | -11 -10 -10 ------- Run | Yrd Mat Sub Traps Triggered 4 | . 2 2 Indirectly . | . . . Trap Hack Attempts . | . . . Triggered . | . . . Disarmed . | . . . Reprogrammed . | . . . Reused . | . . . Traps Extracted . | . . . Installed . | . . . Triggered . | . . . Machines | -11 -10 -10 ---------- Run | Yrd Mat Sub Machines Disabled . | . . . Max in Single Turn . | . . . Machines Repaired . | . . . Machines Dismantled . | . . . Machines Sabotaged . | . . . Overloaded Fab Kills . | . . . Hacking | -11 -10 -10 --------- Run | Yrd Mat Sub Machines Accessed 9 | . 9 . Terminals 7 | . 7 . Fabricators . | . . . Repair Stations . | . . . Recycling Units 2 | . 2 . Scanalyzers . | . . . Garrison Access . | . . . Total Hacks 22 | . 22 . Successful 11 | . 11 . Failed 11 | . 11 . Catastrophic 2 | . 2 . Database Lockouts . | . . . Manual 20 | . 20 . Terminals 20 | . 20 . Fabricators . | . . . Repair Stations . | . . . Recycling Units 2 | . 2 . Scanalyzers . | . . . Garrison Access . | . . . Terminal Hacks 3 | . 3 . Robot Analysis 1 | . 1 . Prototype ID Bank 2 | . 2 . Fabricator Hacks . | . . . Repair Station Hacks . | . . . Recycling Unit Hacks . | . . . Scanalyzer . | . . . Garrison Access Hacks . | . . . Unauthorized Hacks 8 | . 8 . Terminals 6 | . 6 . Botnet 1 | . 1 . Skim 5 | . 5 . Fabricators . | . . . Repair Stations . | . . . Recycling Units 2 | . 2 . Tunnel 2 | . 2 . Scanalyzers . | . . . Garrison Access . | . . . Data Cores Recovered . | . . . Used . | . . . Hacking Detections 7 | . 7 . Full Trace Events . | . . . Feedback Events . | . . . Feedback Blocked . | . . . Robot Schematics Acquired . | . . . Robots Built . | . . . Authchips . | . . . Time . | . . . Total Robot Build Rating . | . . . Part Schematics Acquired . | . . . Parts Built . | . . . Authchips . | . . . Time . | . . . Total Part Build Rating . | . . . Part Studies Acquired . | . . . Parts Repaired . | . . . Time . | . . . Parts Recycled . | . . . Recycled Matter . | . . . Retrieved Matter . | . . . Retrieved Components . | . . . Parts Scanalyzed . | . . . Part Schematics Acquired . | . . . Parts Damaged . | . . . Bothacking | -11 -10 -10 ------------ Run | Yrd Mat Sub Used RIF Installer . | . . . Robots Hacked . | . . . Non-combat . | . . . Combat . | . . . Robot Hacks Applied . | . . . Relay Couplers Released . | . . . Fabnet Peak Effective % . | . . . Robots Rewired . | . . . Allies Hacked . | . . . Hacks Repelled . | . . . Allies | -11 -10 -10 -------- Run | Yrd Mat Sub Total Allies . | . . . Largest Group . | . . . Highest-Rated Group . | . . . Highest-Rated Ally . | . . . Total Orders . | . . . Ally Attacks . | . . . Total Damage . | . . . Kills . | . . . Allies Corrupted . | . . . Allies Melted . | . . . Intel | -11 -10 -10 ------- Run | Yrd Mat Sub Active Infowar (turns) 650 | 13 252 385 Optics 385 | . . 385 Seismic 265 | 13 252 . Robot Analysis Total 1 | . 1 . Derelict Logs Recovered 2 | . . 2 Drone Launches . | . . . Drone Recoveries . | . . . Exploration | -11 -10 -10 ------------- Run | Yrd Mat Sub Turns Passed 5318 | 32 1403 3883 Spaces Moved 2945 | 14 657 2274 Core 4 | . . 4 Treads 1507 | 2 657 848 Legs 12 | 12 . . Wheels 1422 | . . 1422 Hover . | . . . Flight . | . . . Fastest Speed 110 | 120 160 110 Average Speed 148 | 125 160 144 Slowest Speed 600 | 160 160 600 Overloaded Moves . | . . . Propulsion Burnouts . | . . . Robots Hopped . | . . . Potential Cave-ins 6 | . . 6 Cave-ins Triggered . | . . . Exploration Rate (%) 61 | 3 86 96 Regions Visited 2 Branch Regions 1 Pre-discovered Areas 2 | . 2 . Known Exits Taken 1 | . 1 . Unknown Exits Taken 1 | 1 . . Scrap Searched 10 | . . 10 Spaces Dug 11 | . . 11 Terrain Destroyed 95 | . 28 67 Melee . | . . . Projectile 22 | . . 22 AOE 73 | . 28 45 Terrain Rammed . | . . . Walls Destroyed . | . . . Machines Disabled . | . . . Actions | -11 -10 -10 --------- Run | Yrd Mat Sub Total 3677 | 22 936 2719 Wait 484 | . 208 276 Move 2943 | 13 656 2274 Hop . | . . . Pick Up 22 | . 13 9 Fast Attach 6 | 1 . 5 Attach 8 | 2 . 6 Detach 1 | . . 1 Swap 26 | . 8 18 Drop 17 | 2 6 9 Fire 162 | 4 37 121 Melee . | . . . Ram . | . . . Kick . | . . . Crush 8 | . 8 . Escape Stasis . | . . . Rewire . | . . . Trap . | . . . Miscellaneous . | . . . Route ------- -11/Scrapyard -10/Materials (discovered 5 exits: *Mat x3 / [*Min] / *Sub) -10/Subcaves (discovered 4 exits: [*Mat x2] / *Rec / [*Scr]) History --------- Turn | Location | Event 13 | -11/Scrapyard | Discovered new exit (range 3) 33 | -11/Scrapyard | Entered Materials 106 | -10/Materials | Discovered new exit (range 16) 137 | -10/Materials | Met 8R-AWN 269 | -10/Materials | Discovered new exit (range 10) 323 | -10/Materials | Build established: Mutant 761 | -10/Materials | Identified exit to Materials 761 | -10/Materials | Identified exit to Subcaves 931 | -10/Materials | Learned Storage trap positions 970 | -10/Materials | Learned Storage garrison access intel 1020 | -10/Materials | Learned location of 1 exit from Storage 1436 | -10/Materials | Entered Subcaves 1437 | -10/Subcaves | Approached by a straggling Scientist 1460 | -10/Subcaves | A swath of the cavern ceiling suddenly collapsed 1635 | -10/Subcaves | Ambushed by angry Subdweller bent on revenge 1795 | -10/Subcaves | Scientist uncovered a shortcut to Scraptown 1982 | -10/Subcaves | Ambushed by Subdweller buried in earth 2070 | -10/Subcaves | Shifting Twisted Machinery released Flamer 2074 | -10/Subcaves | Shifting Twisted Machinery released Mak. Sword 2135 | -10/Subcaves | Shifting Twisted Machinery released Sub. Beam Cannon 2155 | -10/Subcaves | Shifting Twisted Machinery released Mak. Power Source 2890 | -10/Subcaves | Discovered new exit (range 13) 3191 | -10/Subcaves | Shifting Twisted Machinery released Lgt. Humpback 3397 | -10/Subcaves | Shifting Twisted Machinery released Mak. Light Armor Plating 3410 | -10/Subcaves | Identified exit to Recycling 3491 | -10/Subcaves | Core integrity fell below 50% 3643 | -10/Subcaves | A swath of the cavern ceiling suddenly collapsed 4103 | -10/Subcaves | Disturbed a concealed Subdweller 4129 | -10/Subcaves | Disturbed a concealed Subdweller 4155 | -10/Subcaves | Disturbed a concealed Subdweller 4371 | -10/Subcaves | Ambushed by Subdweller buried in earth 4444 | -10/Subcaves | Build established: Scavenger-Mutant 4821 | -10/Subcaves | Build established: Mutant 4965 | -10/Subcaves | Visited 4L-MR0's lab 5105 | -10/Subcaves | Discovered new exit (range 9) 5154 | -10/Subcaves | Core integrity fell below 20% 5319 | -10/Subcaves | Destroyed by Autobeam Turret with Autobeam Last Messages --------------- them a little longer before you take them away? 04974_ 4L-MR0 cries out in pain. 04974_ 4L-MR0 destroyed. 04977_ Acquired 20 matter. 04999_ U7-FAS(R): "ECOKILL!" 05029_ U7-FAS(R) destroyed. 05075_ Sub. Monowheel shoots sparks and powers down. 05105_ EXIT=FOUND 05141_ T2-EBO(R): "SUB#$%&!" 05160_ T2-EBO(R) destroyed. 05163_ Acquired 20 matter. 05248_ Triggered Piercing Trap. 05248_ Spikes shoot up from the floor. 05248_ Critical hit (Impale). 05248_ Ion Engine destroyed. 05299_ Sub. Monowheel destroyed. 05317_ Particle Cannon destroyed. 05317_ Broken Sub. Monowheel destroyed. Map ----- +----------------------------------------------------+ | ?????????#####???##"&[ #?####???????????????? | | ??????????????????### ## ##??????????????? | | ????????????????????### #??????????????? | | ?????????????????????## ##??????????????? | | ?????????????????????# #???????????????? | | ?????????????????????# #???????????????? | | ?????????????????????# #???????????????? | | ??????????????????#### #???????????????? | | ?????????????????## #???????????????? | | ?????????????????# ##??????????????? | | ?????????????????# ### #??????????????? | | ?????????????????# ##?## % #??????????????? | | ?????????????????# #???### =##??????????????? | | ?????????????????# #?????# ##???????????????? | | ?????????????????## ##???## ##????????????????? | | ??????????????????### #??## ##????????????????? | | ????????????????????# #?## ##???????????????? | | ????????????????????# #?# #???????????????? | | ????????????????????## ### #???????????????? | | ?????????????????????## #???????????????? | | ?????????????????????## #???????????????? | | ????????????????????## #???????????????? | | ????????????????????# #???????????????? | | ???????????????????## ##???????????????? | | ????????????#" # #????????????????? | | ?????????????""t % %@ #?####?????##????? | | ???????????#> # ### ####?# ##???? | | ???????????##""t ## ## ""#???? | | ????????????#" ##### ### "#????? | | ???####?????#" ?## ## #?????? | | ???# ###???#""" ?## #?????? | | ???# ###?########" #?????? | | ???## ### #"" ## "##?????# | | ????## "" "" #### ## ###???### | | ?????# """"" ##??## ### ## ##### / | | ?????# ""### #????####?## # "" | | ????# *""" #?## #??????????### """"" | | ????# """ ##??## #???????????# ### ## ""# | | ????##### #????#########???????????####?######### | | ????????####?????????????????????????????????????? | | ?????????????????????????????????????????????????? | | ?????????????????????????????????????????????????? | | ?????????????????????????????????????????????????? | | ?????????????????????????????????????????????????? | | ?????????????????????????????????????????????????? | | ?????????????????????????????????????????????????? | | ?????????????????????????????????????????????????? | | ?????????????????????????????????????????????????? | | ?????????????????????????????????????????????????? | | ?????????????????????????????????????????????????? | +----------------------------------------------------+ Best States ------------- Heat Dissipation 39 Energy Generation 15 Energy Capacity 250 Matter Stores 300 Matter Capacity 300 Sight Range 21 Terrain Scan Density 10 Evasion (%) 45 Recoil Reduction 2 Item Schematics ----------------- None Robot Schematics ------------------ None Fabricated ------------ Nothing Repaired ---------- Nothing Studied --------- None Alien Tech Used ----------------- None Achievements -------------- Follow The Leader Challenges ------------ None Game ------ Seed SurgeDecoyMicroactuators Manual? 0 Play Time 00:23:07 Cumulative 365.2 hours Start 2026.03.26 @ 22:51:01 End 2026.03.26 @ 23:14:26 Sessions 1 Manual Loads 0 Difficulty Rogue Special Mode None Game No. 296 Rogue 260 Adventurer 36 Explorer 0 Win Type - Total 5 Types 2/0/0/1/0/0/0/2/0/0 Lore% 67 Gallery% 64 Achievement% 52 Wizard Run 0 Options --------- Layout 1 ASCII 0 Keyboard 0 Movement Numpad Keybinds 0 Fullscreen 1 Font 48/Smallcaps Map View 50x35 Zoom Use 0% Tactical HUD 1 Map Filters NONE Filters NONE Steam 1 RUN: c5858362-3210-4881-baa7-8d9f4709de75